bitfinex/quotes_ETHUSD_20250802
["timestamp","ask_amount","ask_price","bid_price","bid_amount"]
[1754113513479,4.4496,3527.7,3527.6,0.002]
[1754113513978,0.1416,3527.7,3527.6,0.57930347]
[1754113514306,4.4496,3527.7,3527.6,0.57930347]
[1754113517820,4.308,3527.7,3527.6,0.57930347]
[1754113519806,5.196,3527.7,3527.6,0.002]
[1754113520925,5.22447072,3527.7,3527.6,0.002]
[1754113521690,5.196,3527.7,3527.6,0.002]
[1754113522232,6.92847072,3527.7,3527.6,0.002]
[1754113522433,6.9,3527.7,3527.6,0.002]
[1754113531475,7.45,3527.7,3527.6,0.002]
[1754113532948,10.45,3527.7,3527.6,0.002]
[1754113533371,40.45,3527.7,3527.6,0.002]
[1754113535853,13.28470816,3527.7,3527.6,0.002]
[1754113536087,43.28470816,3527.7,3527.6,0.002]
[1754113537091,54.08687553,3527.7,3527.6,0.002]
[1754113537887,61.08687553,3527.7,3527.6,0.002]
[1754113539051,61.93945153,3527.7,3527.6,0.002]
[1754113543792,69.52837385,3527.7,3527.6,0.002]
[1754113544389,69.67097385,3527.7,3527.6,0.002]
[1754113544992,38.08902962,3527.3,3527.2,0.002]
[1754113545300,53.19919699,3527.3,3527.2,0.002]
[1754113545484,54.27689699,3527.3,3527.2,0.002]
[1754113545679,61.19289699,3527.3,3527.2,0.002]
[1754113545870,61.56157674,3527.3,3527.2,0.002]
[1754113546200,61.99368119,3527.3,3527.2,1e-08]
[1754113546521,61.99368119,3527.3,3523.7,6.816]
[1754113546522,30.0,3525.3,3524.3,0.852698]
[1754113546659,3.55,3525.5,3524.0,10.80216737]
[1754113546660,0.55,3525.0,3524.0,10.80216737]
[1754113546855,0.1416,3524.1,3523.6,0.1416]
[1754113547093,4.307,3524.0,3523.9,10.80216737]
[1754113547483,4.307,3524.0,3523.5,0.1416]
[1754113547688,0.1416,3523.9,3523.7,10.80216737]
[1754113548002,4.307,3523.8,3523.7,10.80216737]
[1754113548318,0.1416,3523.8,3523.5,10.80216737]
[1754113548519,0.1416,3523.6,3523.5,11.88238411]
[1754113548728,4.312,3523.6,3523.5,11.88238411]
[1754113548919,4.313,3523.7,3523.5,11.88238411]
[1754113549224,4.313,3523.7,3523.6,12.00456578]
[1754113549521,4.313,3523.7,3523.6,10.80216737]
[1754113550134,4.4546,3523.9,3523.6,10.80216737]
[1754113551692,0.1416,3523.9,3523.6,10.80216737]
[1754113551923,4.313,3523.9,3523.7,0.02837926]
[1754113552129,0.1416,3524.2,3523.8,1.08305466]
[1754113552442,4.312,3524.1,3523.8,1.08305466]
[1754113552592,4.312,3524.1,3523.7,0.1416]
[1754113553720,4.312,3524.1,3524.0,10.80216737]
[1754113555003,4.4536,3524.2,3524.0,10.80216737]
[1754113555207,0.1416,3524.2,3524.0,10.80216737]
[1754113555406,4.312,3524.2,3524.0,10.80216737]
[1754113555605,0.55,3525.3,3524.1,1.08021674]
[1754113555913,3.0,3525.1,3524.8,10.80216737]
[1754113556107,4.312,3525.0,3524.8,10.80216737]
[1754113556308,0.1416,3524.9,3524.8,10.80216737]
[1754113556709,4.4536,3524.9,3524.8,10.80216737]
[1754113558999,0.1416,3524.9,3524.8,10.80216737]
[1754113559335,4.4536,3524.9,3524.8,10.80216737]
[1754113560037,4.4536,3524.9,3524.8,11.88238411]
[1754113560038,0.1416,3524.9,3524.8,11.88238411]
[1754113560331,3.9684,3525.7,3524.8,11.88238411]
[1754113560532,0.1416,3525.1,3524.8,1.08021674]
[1754113560734,4.4536,3525.1,3525.0,10.80216737]
[1754113560942,6.817,3525.8,3525.0,10.80216737]
[1754113561233,0.1416,3525.6,3525.0,0.1416]
[1754113561533,4.314,3525.7,3525.3,0.1416]
[1754113561830,4.314,3525.7,3525.6,10.80216737]
[1754113562245,4.314,3525.7,3525.6,11.89654411]
[1754113562652,0.1416,3525.9,3525.6,11.89654411]
[1754113562951,35.257,3525.1,3523.1,10.80216737]
[1754113563120,5.257,3524.7,3523.1,10.80216737]
[1754113563322,5.257,3524.5,3523.2,1.08021674]
[1754113563551,0.55,3524.3,3523.2,1.08021674]
[1754113563724,0.9684,3524.2,3523.2,1.08021674]
[1754113563917,0.9684,3524.1,3523.2,1.08021674]
[1754113564118,0.99687072,3524.0,3522.8,10.80216737]
[1754113564353,5.3834,3523.9,3522.8,10.80216737]
[1754113564651,5.3834,3523.9,3520.9,2.9401516]
[1754113564652,3.2254,3523.8,3522.5,10.80216737]
[1754113564863,0.9684,3523.7,3522.0,4.416]
[1754113565071,0.55,3523.5,3522.6,10.80216737]
[1754113565216,5.3844,3523.4,3522.6,10.80216737]
[1754113565419,0.9684,3523.3,3522.3,10.80216737]
[1754113565662,0.9684,3523.2,3522.4,3.0]
[1754113565865,0.4934,3523.1,3522.4,4.42437674]
[1754113566020,0.4934,3523.1,3522.3,10.80216737]
[1754113566021,0.9684,3523.1,3522.3,10.80216737]
[1754113566414,4.416,3523.4,3522.6,10.80216737]
[1754113566758,0.9684,3523.0,3522.6,10.80216737]
[1754113566961,5.3834,3522.9,3522.1,0.4416]
[1754113567131,4.9084,3522.8,3522.0,3.0]
[1754113569216,0.9684,3522.7,3521.7,0.85334]
[1754113569532,0.4934,3522.6,3521.5,16.73717652]
[1754113570955,0.4934,3522.6,3521.5,21.14917652]
[1754113571320,0.475,3522.5,3521.6,2.20026045]
[1754113571517,0.4934,3522.4,3521.2,4.411]
[1754113571761,0.475,3522.3,3521.3,3.0]
[1754113572056,0.475,3522.3,3521.3,5.50016365]
[1754113572261,0.4934,3522.2,3521.4,4.413]
[1754113572462,0.4934,3522.2,3521.5,4.412]
[1754113572763,0.475,3522.1,3521.3,2.50016365]
[1754113572962,0.1416,3521.8,3521.4,16.73717652]
[1754113573168,0.9684,3522.4,3521.4,16.73717652]
[1754113573368,0.1416,3521.9,3521.5,1.68787765]
[1754113573663,1.11,3521.9,3521.5,1.68787765]
[1754113573833,0.9684,3521.8,3521.3,0.1416]
[1754113574329,0.9684,3521.8,3519.6,0.1483457]
[1754113574330,0.1416,3521.4,3520.9,0.1424]
[1754113574555,0.4934,3522.0,3521.3,16.73717652]
[1754113574866,0.1416,3521.7,3521.3,16.73717652]
[1754113575660,4.41,3522.1,3521.3,16.73717652]
[1754113575964,0.1416,3521.8,3521.3,16.73717652]
[1754113576662,0.475,3522.3,3521.3,16.73717652]
[1754113576829,0.1416,3521.9,3521.4,2.25641765]
[1754113577970,0.4934,3522.3,3521.8,16.73717652]
[1754113578267,0.4934,3522.6,3521.8,16.73717652]
[1754113578505,0.1416,3522.5,3522.0,0.1416]
[1754113578669,0.1416,3522.5,3522.0,1.82947765]
[1754113583974,0.6161,3522.5,3522.0,1.82947765]
[1754113584174,1.0708,3522.5,3522.0,1.82947765]
[1754113584373,0.5963,3522.5,3522.0,1.82947765]
[1754113584569,0.4745,3522.4,3522.0,1.82947765]
[1754113584997,0.5963,3522.5,3522.0,1.82947765]
[1754113585193,0.9292,3522.4,3521.9,4.402]
[1754113585496,1.0708,3522.3,3521.9,4.402]
[1754113585653,0.1416,3522.3,3521.8,0.1416]
[1754113585859,0.9292,3522.2,3521.8,0.1416]
[1754113586090,0.4745,3522.2,3521.8,0.1416]
[1754113587495,0.1416,3522.3,3521.8,16.87877652]
[1754113587697,0.1416,3522.3,3521.8,17.71827742]
[1754113588077,0.1416,3522.4,3521.9,0.1416]
[1754113589898,0.6161,3522.4,3521.9,0.1416]
[1754113591500,0.4745,3522.3,3521.9,4.5396]
[1754113591699,0.4745,3522.2,3521.9,4.5396]
[1754113593094,0.4547,3522.3,3521.9,4.5396]
[1754113593288,0.1416,3522.4,3521.9,4.5396]
[1754113593490,0.6161,3522.4,3521.9,6.79867774]
[1754113594016,0.4745,3522.3,3521.9,6.79667774]
[1754113594219,0.5963,3522.4,3521.9,6.79667774]
[1754113594390,2.83763178,3524.1,3521.9,6.79667774]
[1754113594391,6.916,3524.6,3522.3,16.73717652]
[1754113594589,0.1416,3523.2,3522.4,4.5376]
[1754113594807,0.1416,3523.2,3522.7,0.1416]
[1754113594977,0.1416,3523.2,3522.7,4.5376]
[1754113595177,0.5963,3523.4,3522.9,0.1416]
[1754113595382,0.4745,3523.3,3522.9,0.1416]
[1754113595814,0.4745,3523.2,3522.9,0.1416]
[1754113595983,0.9292,3523.2,3522.9,0.1416]
[1754113596718,0.1416,3523.4,3522.9,0.1416]
[1754113596928,0.4745,3523.3,3522.9,0.1416]
[1754113597127,3.0,3524.0,3522.8,17.59030352]
[1754113597128,0.4745,3523.6,3522.8,17.59030352]
[1754113597281,0.6161,3523.6,3523.1,0.1416]
[1754113597482,0.4547,3523.5,3523.1,0.1416]
[1754113597696,0.9292,3523.5,3523.1,0.1416]
[1754113597882,0.9292,3523.4,3523.1,0.1416]
[1754113598210,0.9292,3523.3,3523.1,0.1416]
[1754113598392,0.1416,3523.6,3523.1,0.1416]
[1754113598596,0.9292,3523.2,3523.1,0.1416]
[1754113598795,0.9292,3523.2,3523.1,0.994683]
[1754113598981,0.9292,3523.2,3523.1,0.1416]
[1754113600724,0.4745,3523.4,3523.1,0.6803684]
[1754113601021,0.1416,3523.8,3523.3,0.1416]
[1754113601219,0.9292,3523.7,3523.3,0.1416]
[1754113601420,0.1416,3523.8,3523.3,0.1416]
[1754113601622,0.9292,3523.6,3523.3,0.1416]
[1754113601919,0.9292,3523.5,3523.3,0.1416]
[1754113602119,0.9292,3523.4,3523.3,0.1416]
[1754113603198,0.9292,3523.4,3523.2,16.73717652]
[1754113603416,0.1416,3523.6,3523.2,16.73717652]
[1754113603622,0.9292,3523.3,3523.2,16.73717652]
[1754113606096,0.4745,3523.3,3523.2,16.73717652]
[1754113606303,0.4745,3523.6,3523.2,16.73717652]
[1754113606602,0.4547,3523.5,3523.2,17.59024752]
[1754113606786,0.4745,3523.6,3523.2,17.59024752]
[1754113606787,0.9292,3523.4,3523.2,17.59024752]
[1754113606993,0.4547,3523.4,3523.2,17.59024752]
[1754113607219,0.4745,3523.3,3523.2,17.59024752]
[1754113608533,0.4745,3523.3,3523.2,16.73717652]
[1754113609028,0.9292,3523.3,3523.2,16.73717652]
[1754113612902,0.9292,3523.3,3523.2,10.84257422]
[1754113613711,0.9292,3523.3,3523.1,4.9951]
[1754113613912,0.4547,3523.3,3523.2,10.84257422]
[1754113614433,0.9445,3523.3,3523.2,10.84257422]
[1754113618747,0.9445,3523.3,3523.1,0.1436]
[1754113618946,0.1416,3523.7,3523.1,0.1436]
[1754113619159,0.9558,3523.2,3523.1,0.1436]
[1754113621432,0.9558,3523.2,3523.1,0.002]
[1754113621841,1.0974,3523.2,3523.1,0.002]
[1754113622442,1.12587072,3523.2,3523.1,0.002]
[1754113622847,1.0974,3523.2,3523.1,0.002]
[1754113624523,0.6314,3523.2,3523.1,0.002]
[1754113624719,0.1416,3523.2,3523.1,0.002]
[1754113625125,0.6314,3523.2,3523.1,0.002]
[1754113626043,0.4898,3523.6,3523.1,0.002]
[1754113626279,0.1416,3523.4,3523.1,0.002]
[1754113626472,0.1416,3523.4,3523.1,10.84457422]
[1754113626679,0.9558,3523.3,3523.1,10.84457422]
[1754113626879,0.1416,3523.4,3523.1,10.84457422]
[1754113627046,0.9558,3523.3,3523.1,10.84457422]
[1754113627253,0.1416,3523.4,3523.1,10.84457422]
[1754113627453,0.9558,3523.2,3523.1,10.84457422]
[1754113628591,0.4898,3523.2,3523.1,10.84457422]
[1754113632809,0.4898,3523.3,3523.1,10.84457422]
[1754113633605,0.4898,3523.2,3523.1,10.84457422]
[1754113638726,0.39251293,3525.0,3523.1,10.84457422]
[1754113638727,0.21023473,3524.2,3523.1,10.84457422]
[1754113638906,0.4898,3523.2,3523.1,0.1436]
[1754113639109,0.4898,3523.2,3523.1,10.98617422]
[1754113640411,0.9558,3523.2,3523.1,10.98617422]
[1754113643864,1.0974,3523.2,3523.1,0.002]
[1754113646481,2.8044,3523.2,3523.1,0.002]
[1754113647688,5.4514,3523.2,3523.1,0.002]
[1754113648729,5.4587,3523.2,3523.1,0.002]
[1754113650791,7.1657,3523.2,3523.1,0.002]
[1754113651170,5.4587,3523.2,3523.1,0.002]
[1754113653171,4.4956,3523.2,3523.1,10.84457422]
[1754113653371,4.354,3523.2,3523.1,10.84457422]
[1754113654270,4.8128,3523.2,3523.1,10.84457422]
[1754113654672,5.2861,3523.2,3523.1,10.84457422]
[1754113654869,5.2861,3523.2,3523.1,0.002]
[1754113655105,5.4277,3523.2,3523.1,0.002]
[1754113661921,0.1416,3523.2,3523.1,10.84457422]
[1754113662222,4.346,3523.2,3523.1,11.92923164]
[1754113662610,4.348,3523.2,3523.1,10.84457422]
[1754113667308,4.8068,3523.2,3523.1,10.84457422]
[1754113669697,5.2801,3523.2,3523.1,13.84457422]
[1754113670029,5.2801,3523.2,3523.1,3.002]
[1754113670230,4.8068,3523.2,3523.1,3.002]
[1754113671626,4.8018,3523.2,3523.1,3.002]
[1754113672141,5.2369,3523.2,3523.1,3.002]
[1754113674739,5.3785,3523.2,3523.1,0.002]
[1754113682719,0.6004,3523.2,3523.1,0.002]
[1754113682924,4.336,3523.2,3523.1,1.08665742]
[1754113683324,5.2582,3523.2,3523.1,0.002]
[1754113684313,5.3998,3523.2,3523.1,0.002]
[1754113700888,1.0638,3523.2,3523.1,0.002]
[1754113701185,5.3948,3523.2,3523.1,0.002]
[1754113701782,4.9249,3523.2,3523.1,0.002]
[1754113701982,5.3769,3523.2,3523.1,0.002]
[1754113708924,37.0839,3523.2,3523.1,0.002]
[1754113709130,7.0839,3523.2,3523.1,0.002]
[1754113710728,10.0839,3523.2,3523.1,0.002]
[1754113710932,40.6339,3523.2,3523.1,0.002]
[1754113714036,6.3029,3523.2,3523.1,0.002]
[1754113714220,40.6349,3523.2,3523.1,0.002]
[1754113714898,10.6349,3523.2,3523.1,0.002]
[1754113715329,47.6349,3523.2,3523.1,0.002]
[1754113717274,17.6349,3523.2,3523.1,0.002]
[1754113717460,47.6349,3523.2,3523.1,0.002]
[1754113718457,10.1416,3523.2,3523.1,0.002]
[1754113718639,11.4736,3523.2,3523.1,0.002]
[1754113720593,11.9259,3523.2,3523.1,0.002]
[1754113721288,4.4736,3523.2,3523.1,0.002]
[1754113721882,4.9259,3523.2,3523.1,0.002]
[1754113726196,5.3779,3523.2,3523.1,0.002]
[1754113732520,4.4736,3523.2,3523.1,0.002]
[1754113733080,4.942,3523.2,3523.1,0.002]
[1754113733409,4.4736,3523.2,3523.1,0.002]
[1754113733809,0.1416,3523.2,3523.1,0.002]
[1754113734020,4.4726,3523.2,3523.1,0.002]
[1754113734520,4.331,3523.2,3523.1,0.002]
[1754113736836,0.1416,3523.3,3523.1,0.002]
[1754113736988,6.916,3523.5,3523.2,1.16977202]
[1754113737193,4.331,3523.4,3523.3,10.84257422]
[1754113739431,0.4684,3524.4,3523.3,10.84257422]
[1754113739600,6.916,3524.6,3524.3,10.84257422]
[1754113739789,4.331,3524.5,3524.3,10.84257422]
[1754113739997,7.3844,3524.6,3524.3,10.84257422]
[1754113740307,4.331,3524.5,3524.3,10.84257422]
[1754113740644,4.331,3524.4,3524.3,11.92683164]
[1754113740812,4.331,3524.4,3524.3,10.84257422]
[1754113741128,4.331,3524.4,3524.2,0.1416]
[1754113741338,5.2398,3524.3,3523.8,3.0]
[1754113741490,0.1416,3524.2,3523.8,3.0]
[1754113741687,4.331,3524.1,3524.0,10.84257422]
[1754113742003,5.2398,3524.1,3523.8,3.0]
[1754113742206,0.4684,3524.0,3523.7,10.98417422]
[1754113742509,4.331,3523.9,3523.7,10.98417422]
[1754113742714,4.331,3523.9,3523.8,1.09841742]
[1754113742900,0.61,3524.2,3523.8,1.09841742]
[1754113743107,4.7994,3524.1,3523.8,1.09841742]
[1754113743619,0.4684,3524.1,3523.8,1.09841742]
[1754113743814,4.33,3524.0,3523.8,1.09841742]
[1754113744131,4.33,3524.0,3523.9,1.20825916]
[1754113744624,0.4684,3524.1,3523.9,2.06119216]
[1754113744831,0.1416,3524.2,3524.0,10.84257422]
[1754113745144,4.33,3524.1,3524.0,10.84257422]
[1754113747803,4.33,3524.1,3524.0,11.69550722]
[1754113748010,4.33,3524.1,3524.0,12.98588386]
[1754113749538,4.7984,3524.1,3524.0,12.98588386]
[1754113750130,4.33,3524.1,3524.0,12.98588386]
[1754113752305,4.7984,3524.1,3524.0,11.69550722]
[1754113757020,5.2388,3524.1,3524.0,11.69550722]
[1754113758548,4.33,3524.1,3524.0,11.69550722]
[1754113761726,4.33,3524.1,3524.0,14.69550722]
[1754113763157,4.329,3524.3,3524.1,3.0]
[1754113763452,4.329,3524.3,3524.2,10.84257422]
[1754113763866,4.329,3524.3,3524.2,11.69541022]
[1754113764963,4.818,3524.5,3524.2,11.69541022]
[1754113765159,0.9253,3524.4,3524.2,11.69541022]
[1754113765459,0.9253,3524.4,3524.3,1.36122209]
[1754113765612,4.329,3524.5,3524.3,0.1416]
[1754113765819,4.329,3524.5,3524.2,0.852836]
[1754113765820,0.9253,3524.4,3524.2,0.852836]
[1754113766019,0.9253,3524.3,3524.2,0.852836]
[1754113766459,0.9253,3524.3,3523.8,13.98617422]
[1754113766765,0.9253,3524.2,3523.9,0.852911]
[1754113766963,0.9253,3524.1,3523.9,0.852911]
[1754113767252,0.9253,3524.0,3523.9,5.76971952]
[1754113769337,0.9253,3524.0,3523.9,2.76971952]
[1754113779853,4.328,3524.4,3523.9,2.91131952]
[1754113780060,0.489,3524.2,3523.9,2.91131952]
[1754113780283,4.7643,3524.1,3523.8,10.98617422]
[1754113780594,0.9253,3524.0,3523.8,10.98617422]
[1754113781101,0.9253,3523.9,3523.8,13.98617422]
[1754113782396,0.9253,3523.9,3523.8,10.98617422]
[1754113786105,0.9253,3523.9,3523.8,0.002]
[1754113786266,1.09537072,3523.9,3523.8,0.002]
[1754113788283,1.0669,3523.9,3523.8,0.002]
[1754113790702,1.09537072,3523.9,3523.8,0.002]
[1754113791315,1.0669,3523.9,3523.8,0.002]
[1754113795515,0.1416,3523.9,3523.8,0.002]
[1754113795813,4.9547,3523.9,3523.8,0.002]
[1754113796018,5.3981,3523.9,3523.8,0.002]
[1754113796403,1.0701,3523.9,3523.8,0.002]
[1754113796577,5.3981,3523.9,3523.8,0.002]
[1754113807707,4.9547,3523.9,3523.8,0.002]
[1754113807909,0.1416,3523.9,3523.8,0.002]
[1754113808082,4.4696,3523.9,3523.8,0.002]
[1754113808503,4.328,3523.9,3523.8,0.002]
[1754113808719,4.328,3523.9,3523.8,0.1436]
[1754113808916,4.328,3523.9,3523.8,1.24221742]
[1754113809718,4.328,3524.0,3523.8,1.24221742]
[1754113809908,4.328,3524.0,3523.9,10.84257422]
[1754113812341,0.1416,3524.5,3523.9,10.84257422]
[1754113812540,0.4851,3525.1,3524.4,10.84257422]
[1754113812837,0.4851,3525.1,3525.0,10.84257422]
[1754113813017,4.8131,3525.1,3525.0,10.84257422]
[1754113813220,4.9547,3525.1,3525.0,10.84257422]
[1754113813429,5.3981,3525.1,3525.0,10.84257422]
[1754113814534,5.3981,3525.1,3524.7,10.84257422]
[1754113814742,0.1416,3524.9,3524.7,10.84257422]
[1754113814919,5.2555,3524.8,3524.7,10.84257422]
[1754113817241,4.8121,3524.8,3524.7,10.84257422]
[1754113817450,4.8121,3524.8,3524.7,12.05083338]
[1754113817652,4.327,3524.8,3524.7,12.05083338]
[1754113817940,4.327,3524.8,3524.7,12.19243338]
[1754113820645,4.327,3525.0,3524.7,12.19243338]
[1754113820847,4.327,3525.0,3524.9,10.98417422]
[1754113821049,5.2555,3525.0,3524.9,10.98417422]
[1754113822264,5.2555,3525.0,3524.9,0.1416]
[1754113822409,5.3971,3525.0,3524.3,10.84257422]
[1754113822614,0.94307072,3524.9,3524.3,10.98417422]
[1754113822867,0.1416,3524.8,3524.3,10.98417422]
[1754113823074,4.326,3524.7,3524.3,10.98417422]
[1754113823361,0.1416,3524.4,3523.9,10.98417422]
[1754113823539,4.326,3524.3,3523.9,12.62525338]
[1754113823868,0.9146,3524.2,3523.9,12.62525338]
[1754113824361,0.9146,3524.1,3523.9,12.62525338]
[1754113824661,0.4601,3524.1,3524.0,10.84257422]
[1754113824862,0.4601,3524.1,3524.0,12.2151613]
[1754113825226,0.9146,3524.1,3524.0,12.2151613]
[1754113826661,0.4545,3524.1,3524.0,12.2151613]
[1754113827352,0.9146,3524.1,3524.0,12.2151613]
[1754113827956,0.4545,3524.1,3524.0,12.2151613]
[1754113829274,4.326,3524.3,3524.0,12.2151613]
[1754113829447,4.7805,3524.3,3524.1,1.34573787]
[1754113829836,4.326,3524.3,3524.1,1.34573787]
[1754113830536,4.7805,3524.3,3524.1,1.34573787]
[1754113830872,4.326,3524.3,3524.0,10.84257422]
[1754113831069,0.9146,3524.2,3524.0,10.84257422]
[1754113831484,0.4545,3524.1,3524.0,10.84257422]
[1754113834243,4.7805,3524.3,3524.0,10.84257422]
[1754113835084,5.2406,3524.3,3524.0,10.84257422]
[1754113835579,4.326,3524.3,3524.0,12.48365338]
[1754113836240,4.326,3524.3,3524.2,0.1416]
[1754113837188,0.5961,3524.9,3524.2,0.1416]
[1754113837347,4.326,3524.6,3524.2,0.1416]
[1754113837552,4.326,3524.6,3524.5,10.84257422]
[1754113838375,4.326,3524.6,3524.5,12.35943164]
[1754113839782,4.326,3524.9,3524.5,12.35943164]
[1754113839979,4.326,3524.9,3524.8,10.84257422]
[1754113840159,4.326,3524.9,3524.8,10.98417422]
[1754113840364,4.7805,3524.9,3524.8,10.98417422]
[1754113840570,5.2406,3524.9,3524.8,10.98417422]
[1754113841889,5.2406,3524.9,3524.4,10.84257422]
[1754113842089,5.2406,3524.9,3524.3,0.852662]
[1754113842090,0.1416,3524.7,3524.3,0.852662]
[1754113842292,0.1416,3524.4,3524.3,0.852662]
[1754113842498,1.0562,3524.4,3524.0,10.84257422]
[1754113842791,4.325,3524.3,3524.0,10.84257422]
[1754113842990,0.9146,3524.2,3524.0,10.84257422]
[1754113843188,0.9146,3524.2,3524.0,11.94119164]
[1754113843394,4.325,3524.3,3524.0,11.94119164]
[1754113843573,0.9146,3524.1,3524.0,11.94119164]
[1754113844475,0.4545,3524.1,3524.0,11.94119164]
[1754113844768,4.325,3524.3,3524.0,11.94119164]
[1754113844974,4.325,3524.3,3524.2,0.1416]
[1754113846057,0.4545,3524.6,3524.2,0.1416]
[1754113846254,0.1416,3524.8,3524.5,10.84257422]
[1754113846483,4.825,3524.9,3524.5,10.84257422]
[1754113846484,0.4545,3524.7,3524.5,10.98417422]
[1754113846796,0.4545,3524.6,3524.5,10.98417422]
[1754113846964,0.9146,3524.6,3524.5,10.98417422]
[1754113847487,0.9146,3524.6,3524.5,11.68420919]
[1754113848007,0.4545,3524.8,3524.5,11.68420919]
[1754113848210,0.4545,3524.8,3524.7,10.84257422]
[1754113848503,4.825,3524.9,3524.7,10.84257422]
[1754113848669,0.4545,3524.8,3524.7,11.63030884]
[1754113848999,0.9146,3524.8,3524.7,11.63030884]
[1754113849203,0.9146,3524.8,3524.6,10.84257422]
[1754113849399,4.825,3524.9,3524.6,10.84257422]
[1754113849605,0.9146,3524.7,3524.6,10.84257422]
[1754113850302,0.9146,3524.7,3524.6,3.0]
[1754113852705,0.5,3524.9,3524.6,13.84257422]
[1754113853014,5.234,3524.7,3524.6,13.84257422]
[1754113853171,5.234,3524.7,3524.6,10.84257422]
[1754113854175,4.792,3524.7,3524.6,10.84257422]
[1754113854374,5.234,3524.7,3524.6,10.84257422]
[1754113856615,4.325,3524.7,3524.6,11.94099164]
[1754113856811,4.325,3524.7,3524.6,12.08259164]
[1754113857019,4.325,3524.7,3524.6,15.08259164]
[1754113858493,4.325,3524.7,3524.6,12.08259164]
[1754113861899,0.5,3524.9,3524.6,16.40759164]
[1754113862081,0.5,3524.9,3524.7,1.64075916]
[1754113862284,0.5,3524.9,3524.8,4.325]
[1754113862904,0.5,3524.9,3524.8,4.4666]
[1754113863104,4.325,3525.3,3524.8,7.4949704]
[1754113863306,0.467,3525.7,3525.2,10.98417422]
[1754113863307,4.324,3525.5,3525.2,10.98417422]
[1754113863492,4.324,3525.5,3525.4,10.84257422]
[1754113863693,4.324,3525.5,3525.4,10.98417422]
[1754113864316,0.1416,3526.0,3525.5,3.0]
[1754113864627,1.706,3527.0,3525.9,10.84257422]
[1754113864628,0.467,3526.5,3525.9,10.84257422]
[1754113864827,0.467,3526.5,3525.6,4.35236396]
[1754113864828,0.467,3526.5,3526.4,10.84257422]
[1754113865757,4.324,3526.6,3526.4,10.84257422]
[1754113865926,4.324,3526.6,3526.4,10.98417422]
[1754113866127,0.467,3526.5,3526.4,10.98417422]
[1754113866294,0.909,3526.5,3526.4,10.98417422]
[1754113867005,0.467,3526.5,3526.4,10.84257422]
[1754113867329,0.909,3526.5,3526.4,10.84257422]
[1754113867512,0.909,3526.5,3526.3,0.1416]
[1754113867699,0.909,3526.4,3526.3,0.1416]
[1754113869631,0.909,3526.4,3526.1,10.84257422]
[1754113869833,4.324,3526.6,3526.1,12.35923164]
[1754113870152,0.909,3526.3,3526.1,1.51665742]
[1754113870462,0.909,3526.3,3525.9,4.324]
[1754113870661,4.324,3526.6,3525.9,4.324]
[1754113870814,0.909,3526.2,3525.9,4.324]
[1754113871018,0.467,3526.1,3525.9,4.324]
[1754113871338,0.467,3526.1,3526.0,11.27497422]
[1754113871740,4.324,3526.6,3526.0,11.27497422]
[1754113872063,0.467,3526.4,3526.0,0.4324]
[1754113872235,0.467,3526.3,3526.0,0.4324]
[1754113872562,4.323,3526.5,3526.0,0.4324]
[1754113872743,0.467,3526.4,3526.1,0.5607715]
[1754113872914,0.442,3526.4,3526.1,0.5607715]
[1754113873119,0.467,3526.3,3526.1,4.8837715]
[1754113873350,1.323,3526.6,3526.2,10.84257422]
[1754113873654,1.765,3526.6,3526.5,10.84257422]
[1754113874253,1.323,3526.6,3526.5,10.84257422]
[1754113874452,0.467,3527.0,3526.5,11.62482985]
[1754113874638,0.467,3527.0,3526.9,10.84257422]
[1754113874841,4.323,3527.1,3526.9,10.84257422]
[1754113875041,0.467,3527.0,3526.9,10.84257422]
[1754113875233,0.909,3527.0,3526.9,10.84257422]
[1754113875858,0.467,3527.0,3526.9,10.84257422]
[1754113876047,0.909,3527.0,3526.9,10.84257422]
[1754113878668,0.909,3527.0,3526.5,4.322]
[1754113878826,4.323,3527.1,3526.3,15.16457422]
[1754113879202,0.909,3526.9,3526.3,10.84257422]
[1754113879370,0.02847072,3526.8,3526.3,10.84257422]
[1754113879523,0.909,3526.7,3526.3,10.98417422]
[1754113879724,0.909,3526.6,3526.3,10.98417422]
[1754113879925,0.909,3526.5,3526.3,10.98417422]
[1754113880151,0.909,3526.4,3526.3,10.98417422]
[1754113880829,0.467,3526.4,3526.3,10.98417422]
[1754113881046,0.467,3526.4,3526.3,12.51479164]
[1754113881727,0.9204,3526.4,3526.3,10.84257422]
[1754113882224,0.467,3526.4,3526.3,10.84257422]
[1754113882572,1.0664,3526.6,3526.3,10.84257422]
[1754113882756,0.9248,3526.6,3526.3,10.98417422]
[1754113883750,0.4714,3526.6,3526.3,10.98417422]
[1754113883952,0.4714,3526.6,3526.3,12.51479164]
[1754113884762,0.4534,3526.8,3526.3,12.51479164]
[1754113884952,0.4534,3526.8,3526.7,10.84257422]
[1754113885156,0.1416,3527.0,3526.7,10.84257422]
[1754113885649,0.4714,3526.9,3526.7,10.84257422]
[1754113885829,0.4534,3526.8,3526.7,10.84257422]
[1754113886028,0.9248,3526.8,3526.7,10.84257422]
[1754113887874,0.4714,3526.9,3526.7,12.06843164]
[1754113888358,0.4714,3526.8,3526.7,12.06843164]
[1754113888537,0.9248,3526.8,3526.7,12.06843164]
[1754113889378,0.9248,3526.8,3526.7,10.98417422]
[1754113894781,0.9248,3526.8,3526.7,10.84257422]
[1754113904660,0.9248,3526.8,3524.1,0.002]
[1754113904661,1.706,3526.6,3524.1,0.002]
[1754113904861,2.256,3526.3,3524.9,0.852555]